fUST/lending_fUST_20250305
["ID","MTS","AMOUNT","RATE_DAILY","PERIOD"]
[355412899,1741117845699,-500.0,0.00043835,120]
[355412900,1741117845708,-500.0,0.00043835,120]
[355412901,1741117845718,-500.0,0.00043835,120]
[355412902,1741117845727,-500.0,0.00043835,120]
[355412903,1741117845736,-500.0,0.00043835,120]
[355412904,1741117845746,-500.0,0.00043835,120]
[355412905,1741117845755,-500.0,0.00043835,120]
[355412906,1741117845765,-500.0,0.00043835,120]
[355412907,1741117845774,-500.0,0.00043835,120]
[355412908,1741117845784,-500.0,0.00043835,120]
[355412909,1741117845793,-500.0,0.00043835,120]
[355412910,1741117845803,-500.0,0.00043835,120]
[355412911,1741117845812,-500.0,0.00043835,15]
[355412912,1741117845822,-500.0,0.00043835,120]
[355412913,1741117845832,-500.0,0.00043835,120]
[355412914,1741117845842,-500.0,0.00043835,120]
[355412915,1741117845851,-1284.75,0.00043835,120]
[355412916,1741117845861,-4806.07,0.00043835,120]
[355412917,1741117845871,-500.0,0.00043835,120]
[355412918,1741117845882,-500.0,0.00043835,120]
[355412919,1741117845891,-500.0,0.00043835,120]
[355412920,1741117845901,-500.0,0.00043835,120]
[355412921,1741117845911,-500.0,0.00043835,120]
[355412922,1741117845920,-500.0,0.00043835,120]
[355412923,1741117845930,-500.0,0.00043835,120]
[355412924,1741117845939,-500.0,0.00043835,120]
[355412925,1741117845949,-502.64324863,0.00043835,120]
[355412926,1741117845959,-500.0,0.00043835,120]
[355412927,1741117845968,-500.0,0.00043835,120]
[355412928,1741117845978,-500.0,0.00043835,120]
[355412929,1741117845987,-772.3,0.00043835,120]
[355412930,1741117845997,-500.0,0.00043835,120]
[355412931,1741117846008,-500.0,0.00043835,120]
[355412932,1741117846017,-500.0,0.00043835,120]
[355412933,1741117846027,-500.0,0.00043835,120]
[355412934,1741117846038,-195.49,0.00043835,120]
[355412935,1741117846048,-500.0,0.00043835,120]
[355412936,1741117846057,-500.0,0.00043835,120]
[355412937,1741117846066,-500.0,0.00043835,120]
[355412938,1741117846076,-500.0,0.00043835,120]
[355412939,1741117846085,-500.0,0.00043835,120]
[355412940,1741117846095,-500.0,0.00043835,120]
[355412941,1741117846105,-500.0,0.00043835,120]
[355412942,1741117846118,-500.0,0.00043835,120]
[355412943,1741117846132,-500.0,0.00043835,120]
[355412944,1741117846142,-500.0,0.00043835,120]
[355412945,1741117846152,-500.0,0.00043835,120]
[355412946,1741117846163,-500.0,0.00043835,120]
[355412947,1741117846173,-500.0,0.00043835,120]
[355412948,1741117846184,-500.0,0.00043835,120]
[355412949,1741117846195,-500.0,0.00043835,120]
[355412950,1741117846205,-500.0,0.00043835,120]
[355412951,1741117846215,-500.0,0.00043835,120]
[355412952,1741117846226,-2019.07,0.00043835,120]
[355412954,1741117846236,-500.0,0.00043835,120]
[355412956,1741117846245,-500.0,0.00043835,120]
[355412957,1741117846255,-4264.68,0.00043835,6]
[355412958,1741117846265,-500.0,0.00043835,120]
[355412959,1741117846276,-500.0,0.00043835,120]
[355412960,1741117846285,-500.0,0.00043835,120]
[355412961,1741117846295,-500.0,0.00043835,120]
[355412963,1741117846305,-2115.93,0.00043835,120]
[355412964,1741117846315,-500.0,0.00043835,120]
[355412965,1741117846324,-500.0,0.00043835,120]
[355412966,1741117846335,-500.0,0.00043835,120]
[355412967,1741117846344,-500.0,0.00043835,120]
[355412968,1741117846354,-503.01725698,0.00043835,120]
[355412969,1741117846364,-410.52254853,0.00043835,120]
[355412970,1741117846376,-500.0,0.00043835,120]
[355412971,1741117846385,-500.0,0.00043835,120]
[355412974,1741117846395,-500.0,0.00043835,120]
[355412976,1741117846405,-500.0,0.00043835,120]
[355412977,1741117846415,-500.0,0.00043835,120]
[355412980,1741117846426,-500.0,0.00043835,120]
[355412981,1741117846436,-500.0,0.00043835,120]
[355412982,1741117846447,-500.0,0.00043835,120]
[355412984,1741117846458,-500.0,0.00043835,120]
[355412985,1741117846468,-500.0,0.00043835,120]
[355412986,1741117846478,-500.0,0.00043835,120]
[355412987,1741117846488,-500.0,0.00043835,120]
[355412988,1741117846497,-500.0,0.00043835,120]
[355412990,1741117846507,-500.0,0.00043835,120]
[355412991,1741117846516,-500.0,0.00043835,120]
[355412992,1741117846526,-887.61,0.00043835,120]
[355412993,1741117846535,-500.0,0.00043835,120]
[355412994,1741117846545,-500.0,0.00043835,120]
[355412995,1741117846555,-687.31,0.00043835,120]
[355412996,1741117846564,-500.0,0.00043835,120]
[355412997,1741117846574,-607.0,0.00043835,120]
[355412998,1741117846584,-1852.06,0.00043835,120]
[355412999,1741117846593,-500.0,0.00043835,120]
[355413000,1741117846603,-500.0,0.00043835,120]
[355413001,1741117846613,-500.0,0.00043835,120]
[355413002,1741117846626,-1301.05,0.00043835,120]
[355413003,1741117846635,-2190.61,0.00043835,120]
[355413004,1741117846645,-500.0,0.00043835,120]
[355413005,1741117846655,-500.0,0.00043835,120]
[355413006,1741117846665,-500.0,0.00043835,120]
[355413007,1741117846674,-500.0,0.00043835,120]
[355413008,1741117846683,-500.0,0.00043835,120]
[355413009,1741117846693,-1000.0,0.00043835,88]
[355413010,1741117846704,-2933.38,0.00043835,120]
[355413011,1741117846714,-500.0,0.00043835,120]
[355413012,1741117846724,-500.0,0.00043835,120]
[355413013,1741117846735,-500.0,0.00043835,120]
[355413014,1741117846746,-500.0,0.00043835,120]
[355413015,1741117846758,-1314.64,0.00043835,120]
[355413016,1741117846769,-7801.42,0.00043835,120]
[355413017,1741117846779,-500.0,0.00043835,120]
[355413018,1741117846790,-500.0,0.00043835,120]
[355413019,1741117846800,-500.0,0.00043835,120]
[355413020,1741117846810,-500.0,0.00043835,120]
[355413021,1741117846821,-500.0,0.00043835,120]
[355413022,1741117846831,-500.0,0.00043835,120]
[355413023,1741117846840,-500.0,0.00043835,120]
[355413024,1741117846850,-500.0,0.00043835,120]
[355413025,1741117846860,-1486.22,0.00043835,120]
[355413026,1741117846870,-500.0,0.00043835,120]
[355413027,1741117846882,-500.0,0.00043835,120]
[355413028,1741117846891,-1079.33,0.00043835,120]
[355413029,1741117846901,-500.0,0.00043835,120]
[355413030,1741117846911,-500.0,0.00043835,120]
[355413031,1741117846921,-500.0,0.00043835,120]
[355413032,1741117846930,-500.0,0.00043835,120]
[355413033,1741117846939,-500.0,0.00043835,120]
[355413034,1741117846949,-500.0,0.00043835,120]
[355413035,1741117846959,-500.0,0.00043835,120]
[355413036,1741117846968,-511.54275996,0.00043835,120]
[355413037,1741117846978,-500.0,0.00043835,120]
[355413038,1741117846988,-49328.95,0.00043835,7]
[355413039,1741117846998,-500.0,0.00043835,120]
[355413040,1741117847008,-500.0,0.00043835,2]
[355413041,1741117847019,-500.0,0.00043835,120]
[355413042,1741117847029,-500.0,0.00043835,120]
[355413043,1741117847039,-772.34,0.00043835,120]
[355413044,1741117847049,-500.0,0.00043835,30]
[355413045,1741117847059,-507.58611928,0.00043873,7]
[355413046,1741117847069,-401.95150697,0.00043873,10]
[355413047,1741117847080,-500.0,0.00043873,10]
[355413048,1741117847090,-500.0,0.00043873,10]
[355413049,1741117847100,-500.0,0.00043873,10]
[355413050,1741117847111,-500.0,0.00043873,10]
[355413051,1741117847127,-500.0,0.00043873,10]
[355413052,1741117847137,-500.0,0.00043873,10]
[355413053,1741117847147,-500.0,0.00043873,10]
[355413054,1741117847157,-500.0,0.00043873,10]
[355413055,1741117847167,-344.34868858,0.00043873,10]
[355413056,1741117847177,-500.0,0.00043873,10]
[355413057,1741117847187,-352.9,0.000439,30]
[355413058,1741117847198,-5096.3,0.000439,30]
[355413059,1741117847207,-160.91,0.000439,30]
[355413060,1741117847218,-346.53,0.000439,30]
[355413061,1741117847227,-21121.96764415,0.00043921,2]
[355413062,1741117847240,-21121.96764415,0.00043923,2]
[355413063,1741117847250,-21121.96764415,0.00043933,2]
[355413064,1741117847260,-21121.96764415,0.00043989,2]
[355413065,1741117847270,-1957.39725793,0.00044,30]
[355413066,1741117847280,-3119.03300715,0.00044263,3]
[355413067,1741117847290,-500.0,0.00044273,10]
[355413068,1741117847300,-222000.0,0.00044273,2]
[355413069,1741117847309,-1000.0,0.00044346,10]
[355413070,1741117847319,-472.45177623,0.00044346,10]
[355413071,1741117847328,-1000.0,0.00044346,10]
[355413072,1741117847338,-694.06866684,0.00044346,10]
[355413073,1741117847347,-500.0,0.00044373,10]
[355413074,1741117847356,-2495.22640572,0.00044373,3]
[355413075,1741117847366,-999.0,0.00044381,120]
[355413076,1741117847378,-500.0,0.00044382,120]
[355413077,1741117847387,-500.0,0.00044382,120]
[355413078,1741117847397,-500.0,0.00044382,120]
[355413079,1741117847407,-150.0,0.00044383,2]
[355413080,1741117847417,-500.0,0.00044383,120]
[355413081,1741117847427,-500.0,0.00044383,120]
[355413082,1741117847437,-500.0,0.00044383,120]
[355413083,1741117847446,-500.0,0.00044383,120]
[355413084,1741117847456,-500.0,0.00044383,120]
[355413085,1741117847466,-500.0,0.00044383,120]
[355413086,1741117847475,-500.0,0.00044383,120]
[355413087,1741117847485,-500.0,0.00044383,120]
[355413088,1741117847494,-500.0,0.00044383,120]
[355413089,1741117847504,-500.0,0.00044383,120]
[355413090,1741117847514,-500.0,0.00044383,120]
[355413091,1741117847523,-500.0,0.00044383,120]
[355413092,1741117847533,-500.0,0.00044383,120]
[355413093,1741117847542,-500.0,0.00044383,120]
[355413094,1741117847551,-1111.11,0.00044383,120]
[355413095,1741117847560,-500.0,0.00044383,120]
[355413096,1741117847569,-243.30524857,0.00044383,120]
[355413097,1741117847579,-500.0,0.00044383,120]
[355413098,1741117847589,-500.0,0.00044383,120]
[355413099,1741117847598,-500.0,0.00044383,120]
[355413100,1741117847608,-500.0,0.00044383,120]
[355413101,1741117847617,-500.0,0.00044383,120]
[355413102,1741117847627,-500.0,0.00044383,120]
[355413103,1741117847636,-500.0,0.00044383,120]
[355413104,1741117847646,-500.0,0.00044383,120]
[355413105,1741117847655,-500.0,0.00044383,120]
[355413106,1741117847664,-500.0,0.00044383,120]
[355413107,1741117847673,-500.0,0.00044383,120]
[355413108,1741117847683,-500.0,0.00044383,120]
[355413109,1741117847693,-500.0,0.00044383,120]
[355413110,1741117847703,-500.0,0.00044383,120]
[355413111,1741117847713,-500.0,0.00044383,120]
[355413112,1741117847722,-500.0,0.00044383,120]
[355413113,1741117847732,-500.0,0.00044383,120]
[355413114,1741117847742,-500.0,0.00044383,120]
[355413115,1741117847751,-500.0,0.00044383,120]
[355413116,1741117847760,-1990.23,0.00044383,120]
[355413117,1741117847769,-500.0,0.00044383,120]
[355413118,1741117847779,-500.0,0.00044383,120]
[355413119,1741117847788,-500.0,0.00044383,120]
[355413120,1741117847797,-500.0,0.00044383,120]
[355413121,1741117847807,-500.0,0.00044383,120]
[355413122,1741117847816,-500.0,0.00044383,120]
[355413123,1741117847825,-500.0,0.00044383,120]
[355413124,1741117847834,-500.0,0.00044383,120]
[355413125,1741117847844,-500.0,0.00044383,120]
[355413126,1741117847853,-500.0,0.00044383,120]
[355413127,1741117847862,-500.0,0.00044383,120]
[355413128,1741117847873,-500.0,0.00044383,120]
[355413129,1741117847883,-500.0,0.00044383,120]
[355413130,1741117847892,-500.0,0.00044383,120]
[355413131,1741117847901,-500.0,0.00044383,120]
[355413132,1741117847911,-500.0,0.00044383,120]
[355413133,1741117847921,-500.0,0.00044383,120]
[355413134,1741117847931,-500.0,0.00044383,120]
[355413135,1741117847940,-500.0,0.00044383,120]
[355413136,1741117847949,-500.0,0.00044383,120]
[355413137,1741117847959,-500.0,0.00044383,120]
[355413138,1741117847968,-500.0,0.00044383,120]
[355413139,1741117847978,-1624.6,0.00044383,120]
[355413140,1741117847987,-500.0,0.00044383,120]
[355413141,1741117847998,-1516.48,0.00044383,30]
[355413142,1741117848007,-500.0,0.00044383,120]
[355413143,1741117848016,-1000.0,0.00044383,120]
[355413144,1741117848027,-500.0,0.00044383,120]
[355413145,1741117848037,-500.0,0.00044383,120]
[355413146,1741117848047,-500.0,0.00044383,120]
[355413147,1741117848057,-500.0,0.00044383,120]
[355413148,1741117848067,-500.0,0.00044383,120]
[355413149,1741117848077,-500.0,0.00044383,120]
[355413150,1741117848087,-500.0,0.00044383,120]
[355413151,1741117848097,-500.0,0.00044383,120]
[355413152,1741117848111,-500.0,0.00044383,120]
[355413153,1741117848121,-500.0,0.00044383,120]
[355413154,1741117848133,-500.0,0.00044383,120]
[355413155,1741117848142,-500.0,0.00044383,120]
[355413156,1741117848153,-500.0,0.00044383,120]
[355413157,1741117848163,-500.0,0.00044383,120]
[355413158,1741117848172,-500.0,0.00044383,120]
[355413159,1741117848182,-500.0,0.00044383,120]
[355413160,1741117848192,-1284.75,0.00044383,120]
[355413161,1741117848202,-4806.07,0.00044383,120]
[355413162,1741117848211,-500.0,0.00044383,120]
[355413163,1741117848221,-500.0,0.00044383,120]
[355413164,1741117848231,-500.0,0.00044383,120]
[355413165,1741117848240,-500.0,0.00044383,120]
[355413166,1741117848250,-500.0,0.00044383,120]
[355413167,1741117848259,-500.0,0.00044383,120]
[355413168,1741117848269,-500.0,0.00044383,120]
[355413169,1741117848278,-772.3,0.00044383,120]
[355413170,1741117848396,-500.0,0.00044383,120]
[355413171,1741117848407,-500.0,0.00044383,120]
[355413172,1741117848416,-500.0,0.00044383,120]
[355413173,1741117848426,-500.0,0.00044383,120]
[355413174,1741117848435,-500.0,0.00044383,120]
[355413175,1741117848444,-500.0,0.00044383,120]
[355413176,1741117848453,-597.8,0.00044383,120]
[355413177,1741117848463,-500.0,0.00044383,120]
[355413178,1741117848473,-500.0,0.00044383,120]
[355413179,1741117848482,-500.0,0.00044383,120]
[355413180,1741117848491,-500.0,0.00044383,120]
[355413181,1741117848500,-500.0,0.00044383,120]
[355413182,1741117848510,-500.0,0.00044383,120]
[355413183,1741117848519,-2019.07,0.00044383,120]
[355413184,1741117848529,-500.0,0.00044383,120]
[355413185,1741117848538,-4264.68,0.00044383,6]
[355413186,1741117848548,-500.0,0.00044383,120]
[355413187,1741117848557,-500.0,0.00044383,120]
[355413188,1741117848567,-2115.93,0.00044383,120]
[355413189,1741117848577,-500.0,0.00044383,120]
[355413190,1741117848587,-500.0,0.00044383,120]
[355413191,1741117848596,-500.0,0.00044383,120]
[355413192,1741117848605,-487.79408317,0.00044383,120]
[355413193,1741117848614,-500.0,0.00044383,120]
[355413194,1741117848624,-495.41843301,0.00044383,120]
[355413195,1741117848634,-500.0,0.00044383,120]
[355413196,1741117848643,-566.38973854,0.00044383,120]
[355413197,1741117848653,-500.0,0.00044383,120]
[355413198,1741117848662,-500.0,0.00044383,120]
[355413199,1741117848672,-500.0,0.00044383,120]
[355413200,1741117848681,-500.0,0.00044383,120]
[355413201,1741117848691,-500.0,0.00044383,120]
[355413202,1741117848700,-500.0,0.00044383,120]
[355413203,1741117848710,-500.0,0.00044383,120]
[355413204,1741117848719,-500.0,0.00044383,120]
[355413205,1741117848729,-500.0,0.00044383,120]
[355413206,1741117848740,-500.0,0.00044383,120]
[355413207,1741117848750,-887.61,0.00044383,120]
[355413208,1741117848760,-500.0,0.00044383,120]
[355413209,1741117848769,-687.31,0.00044383,120]
[355413210,1741117848778,-500.0,0.00044383,120]
[355413211,1741117848788,-607.0,0.00044383,120]
[355413212,1741117848798,-1852.06,0.00044383,120]
[355413213,1741117848807,-500.0,0.00044383,120]
[355413214,1741117848817,-500.0,0.00044383,120]
[355413215,1741117848827,-500.0,0.00044383,120]
[355413216,1741117848837,-1301.05,0.00044383,120]
[355413217,1741117848847,-2190.61,0.00044383,120]
[355413218,1741117848858,-2933.38,0.00044383,120]
[355413219,1741117848867,-500.0,0.00044383,120]
[355413220,1741117848879,-500.0,0.00044383,120]
[355413221,1741117848890,-1314.64,0.00044383,120]
[355413222,1741117848900,-7801.42,0.00044383,120]
[355413223,1741117848910,-500.0,0.00044383,120]
[355413224,1741117848919,-500.0,0.00044383,120]
[355413225,1741117848929,-500.0,0.00044383,120]
[355413226,1741117848940,-500.0,0.00044383,120]
[355413227,1741117848950,-500.0,0.00044383,120]
[355413228,1741117848959,-500.0,0.00044383,120]
[355413229,1741117848970,-1486.22,0.00044383,120]
[355413230,1741117848980,-500.0,0.00044383,120]
[355413231,1741117848990,-500.0,0.00044383,120]
[355413232,1741117849000,-1079.33,0.00044383,120]
[355413233,1741117849010,-500.0,0.00044383,120]
[355413234,1741117849020,-245.37580156,0.00044383,120]
[355413235,1741117849031,-500.0,0.00044383,120]
[355413236,1741117849045,-281.76258788,0.00044383,120]
[355413237,1741117849055,-500.0,0.00044383,120]
[355413238,1741117849065,-500.0,0.00044383,120]
[355413239,1741117849075,-49328.95,0.00044383,7]
[355413240,1741117849084,-500.0,0.00044383,2]
[355413241,1741117849095,-500.0,0.00044383,120]
[355413242,1741117849104,-500.0,0.00044383,120]
[355413243,1741117849116,-772.34,0.00044383,120]
[355413244,1741117849125,-150.0,0.00044549,2]
[355413245,1741117849135,-1954.0,0.00044549,2]
[355413246,1741117849144,-539.0,0.00044549,2]
[355413247,1741117849155,-2276.0,0.00044549,2]
[355413248,1741117849165,-511.061,0.00044549,2]
[355413249,1741117849174,-1871.41980429,0.00044921,3]
[355413250,1741117849184,-999.0,0.00044929,120]
[355413251,1741117849196,-500.0,0.0004493,120]
[355413252,1741117849207,-500.0,0.0004493,120]
[355413253,1741117849217,-500.0,0.0004493,120]
[355413254,1741117849227,-1361.2541776,0.00044931,40]
[355413255,1741117849237,-7840.10468178,0.00044931,40]
[355413256,1741117849247,-150.0,0.00044931,2]
[355413257,1741117849258,-500.0,0.00044931,120]
[355413258,1741117849270,-500.0,0.00044931,120]
[355413259,1741117849280,-500.0,0.00044931,120]
[355413260,1741117849289,-500.0,0.00044931,120]
[355413261,1741117849299,-500.0,0.00044931,120]
[355413262,1741117849309,-500.0,0.00044931,120]
[355413263,1741117849319,-500.0,0.00044931,120]
[355413264,1741117849328,-500.0,0.00044931,120]
[355413265,1741117849338,-500.0,0.00044931,120]
[355413266,1741117849347,-500.0,0.00044931,120]
[355413267,1741117849356,-500.0,0.00044931,120]
[355413268,1741117849366,-1111.11,0.00044931,120]
[355413269,1741117849376,-500.0,0.00044931,120]
[355413270,1741117849386,-500.0,0.00044931,120]
[355413271,1741117849396,-500.0,0.00044931,120]
[355413272,1741117849405,-500.0,0.00044931,120]
[355413273,1741117849414,-500.0,0.00044931,120]
[355413274,1741117849424,-500.0,0.00044931,120]
[355413275,1741117849434,-500.0,0.00044931,120]
[355413276,1741117849443,-436.87622989,0.00044931,120]
[355413277,1741117849452,-500.0,0.00044931,120]
[355413278,1741117849462,-500.0,0.00044931,120]
[355413279,1741117849471,-500.0,0.00044931,120]
[355413280,1741117849481,-500.0,0.00044931,120]
[355413281,1741117849491,-500.0,0.00044931,120]
[355413282,1741117849500,-500.0,0.00044931,120]
[355413283,1741117849509,-500.0,0.00044931,120]
[355413284,1741117849519,-500.0,0.00044931,120]
[355413285,1741117849528,-500.0,0.00044931,120]
[355413286,1741117849539,-1990.23,0.00044931,120]
[355413287,1741117849548,-500.0,0.00044931,120]
[355413288,1741117849557,-500.0,0.00044931,120]
[355413289,1741117849566,-529.91,0.00044931,120]
[355413290,1741117849575,-500.0,0.00044931,120]
[355413291,1741117849584,-500.0,0.00044931,120]
[355413292,1741117849594,-500.0,0.00044931,120]
[355413293,1741117849603,-500.0,0.00044931,120]
[355413294,1741117849612,-500.0,0.00044931,120]
[355413295,1741117849622,-500.0,0.00044931,120]
[355413296,1741117849633,-500.0,0.00044931,120]
[355413297,1741117849642,-564.44440986,0.00044931,120]
[355413298,1741117849651,-500.0,0.00044931,120]
[355413299,1741117849660,-500.0,0.00044931,120]
[355413300,1741117849670,-274.01657288,0.00044931,120]
[355413301,1741117849679,-500.0,0.00044931,120]
[355413302,1741117849689,-500.0,0.00044931,120]
[355413303,1741117849698,-500.0,0.00044931,120]
[355413304,1741117849707,-500.0,0.00044931,120]
[355413305,1741117849717,-1624.6,0.00044931,120]
[355413306,1741117849726,-500.0,0.00044931,120]
[355413307,1741117849735,-1516.48,0.00044931,30]
[355413308,1741117849744,-500.0,0.00044931,120]
[355413309,1741117849753,-500.0,0.00044931,120]
[355413310,1741117849763,-500.0,0.00044931,120]
[355413311,1741117849772,-500.0,0.00044931,120]
[355413312,1741117849781,-500.0,0.00044931,120]
[355413313,1741117849791,-500.0,0.00044931,120]
[355413314,1741117849800,-500.0,0.00044931,120]
[355413315,1741117849810,-500.0,0.00044931,120]
[355413316,1741117849819,-500.0,0.00044931,120]
[355413317,1741117849831,-500.0,0.00044931,120]
[355413318,1741117849845,-500.0,0.00044931,120]
[355413319,1741117849854,-500.0,0.00044931,120]
[355413320,1741117849864,-1284.75,0.00044931,120]
[355413321,1741117849873,-4806.07,0.00044931,120]
[355413322,1741117849882,-500.0,0.00044931,120]
[355413323,1741117849892,-479.5731423,0.00044931,120]
[355413324,1741117849901,-500.0,0.00044931,120]
[355413325,1741117849910,-500.0,0.00044931,120]
[355413326,1741117849920,-772.3,0.00044931,120]
[355413327,1741117849929,-500.0,0.00044931,120]
[355413328,1741117849939,-500.0,0.00044931,120]
[355413329,1741117849948,-220.61907018,0.00044931,120]
[355413330,1741117849958,-500.0,0.00044931,120]
[355413331,1741117849967,-500.0,0.00044931,120]
[355413332,1741117849977,-500.0,0.00044931,120]
[355413333,1741117849986,-500.0,0.00044931,120]
[355413334,1741117849995,-2019.07,0.00044931,120]
[355413335,1741117850005,-500.0,0.00044931,120]
[355413336,1741117850015,-4264.68,0.00044931,6]
[355413337,1741117850024,-500.0,0.00044931,120]
[355413338,1741117850034,-2115.93,0.00044931,120]
[355413339,1741117850043,-500.0,0.00044931,120]
[355413340,1741117850053,-500.0,0.00044931,120]
[355413341,1741117850062,-500.0,0.00044931,120]
[355413342,1741117850071,-500.0,0.00044931,120]
[355413343,1741117850081,-500.0,0.00044931,120]
[355413344,1741117850090,-500.0,0.00044931,120]
[355413345,1741117850099,-500.0,0.00044931,120]
[355413346,1741117850110,-500.0,0.00044931,120]
[355413347,1741117850125,-281.14971589,0.00044931,120]
[355413348,1741117850134,-887.61,0.00044931,120]
[355413349,1741117850144,-500.0,0.00044931,120]
[355413350,1741117850155,-687.31,0.00044931,120]
[355413351,1741117850164,-500.0,0.00044931,120]
[355413352,1741117850173,-607.0,0.00044931,120]
[355413353,1741117850184,-1852.06,0.00044931,120]
[355413354,1741117850195,-500.0,0.00044931,120]
[355413355,1741117850205,-500.0,0.00044931,120]
[355413356,1741117850215,-500.0,0.00044931,120]
[355413357,1741117850224,-1301.05,0.00044931,120]
[355413358,1741117850234,-2190.61,0.00044931,120]
[355413359,1741117850243,-2933.38,0.00044931,120]
[355413360,1741117850253,-500.0,0.00044931,120]
[355413361,1741117850262,-1314.64,0.00044931,120]
[355413362,1741117850272,-7801.42,0.00044931,120]
[355413363,1741117850282,-500.0,0.00044931,120]
[355413364,1741117850291,-600.00037231,0.00044931,120]
[355413365,1741117850301,-500.0,0.00044931,120]
[355413366,1741117850310,-500.0,0.00044931,120]
[355413367,1741117850319,-500.0,0.00044931,120]
[355413368,1741117850329,-500.0,0.00044931,120]
[355413369,1741117850339,-1486.22,0.00044931,120]
[355413370,1741117850348,-500.0,0.00044931,120]
[355413371,1741117850359,-500.0,0.00044931,120]
[355413372,1741117850368,-1079.33,0.00044931,120]
[355413373,1741117850379,-500.0,0.00044931,120]
[355413374,1741117850388,-500.0,0.00044931,120]
[355413375,1741117850397,-500.0,0.00044931,120]
[355413376,1741117850407,-49328.95,0.00044931,7]
[355413377,1741117850416,-500.0,0.00044931,120]
[355413378,1741117850426,-500.0,0.00044931,120]
[355413379,1741117850435,-772.34,0.00044931,120]
[355413380,1741117850444,-156.612443,0.00044972,31]
[355413381,1741117850453,-181.41632796,0.0004499,120]
[355413382,1741117850462,-181.41,0.0004499,120]
[355413383,1741117850472,-169.3219061,0.0004499,120]
[355413384,1741117850482,-169.3219061,0.0004499,120]
[355413385,1741117850491,-169.3219061,0.0004499,120]
[355413386,1741117850501,-500.0,0.00045069,30]
[355413387,1741117850510,-5000.0,0.0004509,7]
[355413388,1741117850520,-700.0,0.00045133,30]
[355413389,1741117850529,-169.3219061,0.00045142,120]
[355413390,1741117850539,-3331.25235137,0.00045183,2]
[355413391,1741117850549,-500.0,0.00045204,30]
[355413392,1741117850559,-500.0,0.00045331,30]
[355413393,1741117850568,-700.0,0.00045332,30]
[355413394,1741117850578,-163.21583966,0.00045379,27]
[355413395,1741117850587,-1247.61320286,0.00045469,3]
[355413396,1741117850597,-150.0,0.00045473,10]
[355413397,1741117850606,-999.0,0.00045477,120]
[355413398,1741117850615,-500.0,0.00045478,120]
[355413399,1741117850625,-532.85253569,0.00045478,120]
[355413400,1741117850635,-500.0,0.00045478,120]
[355413401,1741117850645,-150.0,0.00045479,2]
[355413402,1741117850654,-500.0,0.00045479,120]
[355413403,1741117850663,-500.0,0.00045479,120]
[355413404,1741117850673,-500.0,0.00045479,120]
[355413405,1741117850682,-500.0,0.00045479,120]
[355413406,1741117850691,-312.85939041,0.00045479,120]
[355413407,1741117850700,-500.0,0.00045479,120]
[355413408,1741117850709,-500.0,0.00045479,120]